Workbook

Sheet Instructions
B2: In-Unit Measures during COVID-19
B4: The Multifamily Performance Program (MPP) team understands that during the time of COVID-19 it may not be possible to enter a dwelling unit to investigate the existing conditions of certain components. Please use the below flow chart to determine how to gather existing conditions data for appliances, low-flow fixtures, lighting, and cooling within dwelling units. The New York State Energy Research and Development Authority (NYSERDA) is providing guidance on our clean energy construction programs as it relates to the State’s response to COVID-19. We understand this situation is rapidly changing, and our teams are here to help you navigate our programs during this unprecedented time. Please refer to NYSERDA’s Response to COVID-19 and Resources webpage (https://www.nyserda.ny.gov/ny/COVID-19-Response) for the latest COVID-19 guidance and updates, as well as the New York Forward Website (https://forward.ny.gov/) before entering any dwelling units or buildings.
B21: Please note, this reference document is meant to complement the guidance in the Simulation Guidelines and quality control flags built into the SAV-IT. Please be aware that any flags seen in the SAV-IT supersede any assumptions provided in this reference document.

Sheet Appliances
A1: Instructions: Please fill out the blue cells with item details. Assumed existing energy details will be auto-populated in the white cells. Please use these auto-populated assumed existing consumption per appliance, or per cycle for your calculations.
A3: Refrigerators | B3: Date Manufactured
B4: Refrigerator Type
B5: Proposed Refrigerator Volume in ft3 (based on proposed unit)
B6: Existing kWh/yr. consumption per refrigerator | C6: =IFERROR(IF(C5="","-",ROUNDUP(VLOOKUP(C3&C4,Lookups!A10:D73,4,FALSE),0)),"-") -> -
A8: Dishwashers | B8: Dishwasher Type
B9: Compact vs. Standard Definition | C9: =IF(C8="","-",IF(C8="Compact","Capacity less than eight place settings plus six serving pieces.","Capacity equal to or greater than eight place settings plus six serving pieces.")) -> -
B10: Existing kWh/yr. consumption per Dishwasher | C10: =IFERROR(VLOOKUP(Appliances!C8,Lookups!G9:I10,2,FALSE),"-") -> -
B11: Existing gallons/cycle consumption per dishwasher | C11: =IFERROR(VLOOKUP(Appliances!C8,Lookups!G9:I10,3,FALSE),"-") -> -
A13: In-Unit Clothes Washers | B13: Date Manufactured
B14: Clothes Washer Type
B15: Clothes Washer Capacity (ft3)
B16: Energy Factor (ft3/kWh/cycle) | C16: =IFERROR(IF(C15="","-",VLOOKUP(C13&C14,Lookups!N9:Q17,3,FALSE)),"-") -> -
B17: kWh/cycle | C17: =IFERROR(IF(C15="","-",C15/C16),"-") -> -
B18: Water Factor (gal/cycle/ft3) | C18: =IFERROR(IF(C15="","-",VLOOKUP(C13&C14,Lookups!N9:Q17,4,FALSE)),"-") -> -
B19: gal/cycle | C19: =IFERROR(IF(C15="","-",C15*C18),"Not Available") -> -
A21: In-Unit Clothes Dryer | B21: Date Manufactured
B22: Clothes Dryer Type
B23: Average total weight of clothes per cycle (lbs/cycle) Helpful Note: ENERGY STAR's Product Finder assumes 8.45 lbs for standard dryers and 3 lbs for compact dryers.
B24: Combined Energy Factor (lbs/kWh) | C24: =IFERROR(IF(C23="","-",VLOOKUP(C21&C22,Lookups!AH11:AJ23,3,FALSE)),"-") -> -
B25: kWh/cycle | C25: =IFERROR(IF(C23="","-",C23/C24),"-") -> -
A27: Source | B27: Technical Resource Manual (TRM): New York Standard Approach for Estimating Energy Savings from Energy Efficiency Programs – Residential, Multi-Family, and Commercial/Industrial Measures Version 7 Electronic Code of Federal Regulations §430.32 Energy and water conservation standards and their compliance dates. https://ecfr.io/Title-10/Section-430.32 ENERGY STAR Product Finder, Clothes Dryer Key Product Criteria https://www.energystar.gov/products/appliances/clothes_dryers/key_product_criteria

Sheet Low-Flow Fixtures
A1: Instructions: Please use the below existing flow rates per fixture based on fixture type for your calculations.
A3: Low-Flow Fixtures | B3: Fixture Type | C3: Existing GPM or GPF
B4: Bathroom faucets/ replacement aerators | C4: 2.2 gpm @ 60 psi
B5: Kitchen faucets/ replacement aerators | C5: 2.2 gpm @ 60 psi
B6: Showerhead | C6: 2.5 gpm @ 80 psi
A8: Source | B8: Technical Resource Manual (TRM): New York Standard Approach for Estimating Energy Savings from Energy Efficiency Programs – Residential, Multi-Family, and Commercial/Industrial Measures Version 7 Electronic Code of Federal Regulations §430.32 Energy and water conservation standards and their compliance dates. https://ecfr.io/Title-10/Section-430.32

Sheet Lighting
A1: Instructions: Please use the below existing watts per fixture based on fixture type for your calculations. Please note, it is not typical to have more than 3% source energy reduction for an in-unit lighting retrofit measure compared to the whole building source consumption (1).
A3: In-Unit Lighting | B3: Typical Existing Fixture Type | C3: Typical Existing Fixture Watts
B4: Incandescent A-lamp | C4: 60
B5: Incandescent globe lamp | C5: 40
B6: BR30 incandescent reflector lamp | C6: 65
B7: BR40 incandescent reflector lamp | C7: 65
B8: BR30 halogen IR reflector lamp | C8: 45
B9: PAR30 halogen reflector lamp | C9: 50
B10: PAR38 halogen reflector lamp | C10: 90
B11: 4-foot T12 linear fluorescent lamp | C11: 40
B12: 3-foot T12 linear fluorescent lamp | C12: 30
B13: 2-foot T12 linear fluorescent lamp | C13: 20
B14: 4-foot T8 linear fluorescent lamp | C14: 32
B15: 3-foot T8 linear fluorescent lamp | C15: 26
B16: 21-inch T5 linear fluorescent lamp | C16: 13
B17: Screwbase CFL | C17: 14
B18: Covered CFL (A-lamp shape) | C18: 15
B19: Covered CFL (globe-shape) | C19: 9
B20: Covered CFL (globe-shape, with candelabra-base) | C20: 9
B21: Covered CFL (capsule-shape) | C21: 14
B22: Covered FL (reflector-shape) | C22: 15
B23: CFL (GU24 Base) | C23: 9
B24: Screwbase LED (A-lamp shape) | C24: 12
B25: Screwbase LED (globe-shape) | C25: 8
B26: Screwbase LED reflector (PAR20 shape) | C26: 9
B27: Screwbase LED reflector (BR30 shape | C27: 13
B28: Screwbase LED reflector (PAR30 shape, outdoor-rated) | C28: 15
B29: Screwbase LED reflector (PAR38 shape, outdoor-rated) | C29: 24
A31: Source: | B31: (1) Realizing Measurable Savings in Multifamily Buildings: Results from NYSERDA's Multifamily Performance Program (Table 1: Energy Conservation Measures) https://www.aceee.org/files/proceedings/2014/data/papers/2-414.pdf (2) The Lighting Field Guide Upgrading to LEDs for Multi-family Housing https://www.lrc.rpi.edu/programs/solidstate/assist/pdf/multifamilyLEDGuide.pdf

Sheet Cooling
A1: Instructions: Please fill out the blue cells with item details. Assumed existing energy details will be auto-populated in the white cells. Please use these auto-populated assumed existing values in your calculations.
A3: Room Air Conditioners (RAC) | B3: Date Manufactured
B4: Are there Louvered Sides? Please note: -Room air conditioner units without louvered sides are also referred to as “through the wall” units. These units may also be referred to as “built-in” units. -If Casement, select NA. "Casement only" refers to a RAC designed for mounting in a casement window with an encased assembly with a width of 14.8 inches or less and a height of 11.2 inches or less.
B5: Is Reverse Cycle Present? Please note: -Reverse Cycle: A RAC that employs a means for reversing the function of the indoor and outdoor coils such that the indoor coil becomes the refrigerating system condenser, allowing for heating of the air in the conditioned space; similarly, the outdoor coil becomes the evaporator, utilizing outdoor air as a source of heat. -If Casement, select NA. "Casement only" refers to a RAC designed for mounting in a casement window with an encased assembly with a width of 14.8 inches or less and a height of 11.2 inches or less.
B6: Lookup | C6: =C4&C5 -> 
B7: Existing Unit Capacity Please note: -Casement-only: A RAC designed for mounting in a casement window with an encased assembly with a width of 14.8 inches or less and a height of 11.2 inches or less. -Casement-slider: A RAC with an encased assembly designed for mounting in a sliding or casement window with a width of 15.5 inches or less.
B8: Energy Efficiency Ratio (EER) | C8: =IFERROR(IF(C3=Lookups!AW8,VLOOKUP(C3&C4&C5&C7,Lookups!AV10:AW29,2,FALSE),IF(C3=Lookups!AY8,VLOOKUP(C3&C4&C5&C7,Lookups!AX10:AY29,2,FALSE),"-")),"-") -> -
A10: Central Air Conditioners and Heat Pumps | B10: Existing Unit Description
B11: Seasonal Energy Efficiency Ratio (SEER) | C11: =IFERROR(VLOOKUP(C10,Lookups!AQ31:AT38,2,FALSE),"-") -> -
B12: Heating Seasonal Performance Factor (HSPF) | C12: =IFERROR(VLOOKUP(C10,Lookups!AQ31:AT38,3,FALSE),"-") -> -
B13: Average off mode power consumption (watts) | C13: =IFERROR(VLOOKUP(C10,Lookups!AQ31:AT38,4,FALSE),"-") -> -
A15: Source | B15: Technical Resource Manual (TRM): New York Standard Approach for Estimating Energy Savings from Energy Efficiency Programs – Residential, Multi-Family, and Commercial/Industrial Measures Version 7 Electronic Code of Federal Regulations §430.32 Energy and water conservation standards and their compliance dates. https://ecfr.io/Title-10/Section-430.32 ENERGY STAR® Program Requirements for Room Air Conditioners https://www.energystar.gov/sites/default/files/specs/private/Room_Air_Conditioner_Program_Requirements_Version_3.pdf

Sheet Lookups (hidden)
A1: References | B1: Refrigerators | G1: Dishwasher | M1: Clothes Washer | V1: Low Flow Fixtures | AD1: In Unit Lighting | AI1: Dryers | AP1: Cooling
C3: Existing Consumption Guidance | D3: Source | H3: Existing Consumption Guidance | I3: Source | N3: Existing Consumption Guidance | O3: Source | W3: Existing Consumption Guidance | X3: Source | AE3: Existing Consumption Guidance | AF3: Source | AJ3: Existing Consumption Guidance | AK3: Source | AQ3: Existing Consumption Guidance | AR3: Source
B4: TRM | C4: See Calculator Below | D4: 10 CFR 430.32 Energy and water conservation standards and their compliance dates https://www.ecfr.gov/cgi-bin/text-idx?SID=a9921a66f2b4f66a32ec851916b7b9d9&mc=true&node=se10.3.430_132&rgn=div8 | G4: TRM | H4: Manufactured on or after May 30th, 2013 Compact: 222 kWh/yr ; 3.5 gallons/cycle Standard:307 kWh/yr; 5 gallons/ cycle | I4: 10 CFR 430.32 Energy and water conservation standards and their compliance dates https://www.law.cornell.edu/cfr/text/10/430.32 | M4: TRM | N4: Manufactured on or after January 1st, 2007 Top Loading Compact (less than 1.6 ft3 capacity): 0.65 ft3/kWh/cycle Top Loading Standard (1.6 ft3 or greater capacity): 1.26 ft3/kWh/cycle Front Loading: 1.26 ft3/kWh/cycle Manufactured on or after March 7th, 2015 and before January 1,2018 Top Loading Compact (less than 1.6 ft3 capacity): 0.86 ft3/kWh/cycle Energy Factor; 14.4 gal/cycle/ft3 water factor Top Loading Standard (1.6 ft3 or greater capacity): 1.29 ft3/kWh/cycle Energy Factor; 8.4 gal/cycle/ft3 water factor Front Loading Compact (less than 1.6 ft3 capacity): 1.13 ft3/kWh/cycle Energy Factor; 8.3 gal/cycle/ft3 water factor Front Loading Standard (1.6 ft3 or greater capacity): 1.84 ft3/kWh/cycle Energy Factor; 4.7 gal/cycle/ft3 water factor | O4: 10 CFR 430.32 Energy and water conservation standards and their compliance dates https://www.law.cornell.edu/cfr/text/10/430.32 | V4: TRM | W4: See Calculator Below | X4: TRM 10 CFR 430.32 Energy and water conservation standards and their compliance dates https://www.law.cornell.edu/cfr/text/10/430.32 | AD4: The Lighting Field Guide Upgrading to LEDs for Multi-family Housing | AE4: See Calculator Below | AF4: (2) The Lighting Field Guide Upgrading to LEDs for Multi-family Housing https://www.lrc.rpi.edu/programs/solidstate/assist/pdf/multifamilyLEDGuide.pdf | AI4: TRM | AJ4: See Calculator Below | AK4: TRM 10 CFR 430.32 Energy and water conservation standards and their compliance dates https://www.law.cornell.edu/cfr/text/10/430.32 | AP4: TRM | AQ4: See Calculator Below | AR4: TRM 10 CFR 430.32 Energy and water conservation standards and their compliance dates https://www.law.cornell.edu/cfr/text/10/430.32
A6: TRM | B6: Refrigerators | G6: Dishwasher | M6: Clothes Washer | V6: Low Flow Fixtures | AI6: Dryers | AP6: Cooling
A7: Before September 15, 2014 | C7: AV: Adjusted Volume in ft3 | AG7: Manufactured on or before January 1, 2015 | AO7: =AQ9 -> 0
A8: September 15, 2014 and after | B8: Product class | C8: Energy standard equations for maximum energy use | D8: Formula | G8: Dishwasher Type | H8: kWh/yr | I8: Gallon/cycle | M8: Manufactured on or after January 1st, 2007 | O8: =M8 -> Manufactured on or after January 1st, 2007 | P8: ft3/kWh/cycle Energy Factor | Q8: gal/cycle/ft3 water factor | V8: Manufactured after January 1, 1994 | AD8: Lamp Type | AE8: Power (watts) | AG8: Manufactured after January 1, 2015 | AO8: =AQ31 -> Central Air Conditioners and Heat Pumps | AW8: Before May 31, 2014 | AY8: After May 31, 2014
C9: (kWh/yr) | D9: (kWh/yr) | G9: Compact | H9: 222 | I9: 3.5 | M9: Manufactured between March 7th, 2015 and January 1st, 2018 | N9: =$O$8&O9 -> Manufactured on or after January 1st, 2007Top Loading Compact (less than 1.6 ft3 capacity) | O9: Top Loading Compact (less than 1.6 ft3 capacity) | P9: 0.65 | Q9: NA | W9: Faucet type | X9: Maximum flow rate | AD9: Incandescent A-lamp | AE9: 60 | AJ9: Manufactured on or before January 1, 2015 | AO9: =AW8 -> Before May 31, 2014 | AR9: Is Reverse Cycle Present? | AS9: Are there Louvered Sides? | AT9: Lookup | AU9: Capacity | AV9: Lookup | AW9: EER | AX9: Lookup | AY9: EER | AZ9: YesNo | BA9: NoNo | BB9: YesYes | BC9: NoYes | BD9: NANA
A10: ="Before September 15, 2014"&B10 -> Before September 15, 2014Refrigerators and refrigerator-freezers with manual defrost | B10: Refrigerators and refrigerator-freezers with manual defrost | C10: 8.82AV + 248.4 | D10: =8.82*Appliances!$C$5+248.4 -> 248.4 | G10: Standard | H10: 307 | I10: 5 | N10: =$O$8&O10 -> Manufactured on or after January 1st, 2007Top Loading Standard (1.6 ft3 or greater capacity) | O10: Top Loading Standard (1.6 ft3 or greater capacity) | P10: 1.26 | Q10: NA | W10: Bathroom faucets/ replacement aerators | X10: 2.2 gpm @ 60 psi | AD10: Incandescent globe lamp | AE10: 40 | AJ10: Energy Factor (lbs/kWh) | AO10: =AY8 -> After May 31, 2014 | AQ10: Without reverse cycle, with louvered sides, and less than 6,000 Btu/h | AR10: No | AS10: Yes | AT10: =AS10&AR10 -> YesNo | AU10: < 6,000 Btu/h | AV10: =$AW$8&AS10&AR10&AU10 -> Before May 31, 2014YesNo< 6,000 Btu/h | AW10: 9.7 | AX10: =$AY$8&AS10&AR10&AU10 -> After May 31, 2014YesNo< 6,000 Btu/h | AY10: 11 | AZ10: < 6,000 Btu/h | BA10: < 6,000 Btu/h | BB10: < 20,000 Btu/h | BC10: 14,000 Btu/h | BD10: NA - Casement Only
A11: ="Before September 15, 2014"&B11 -> Before September 15, 2014Refrigerator-freezers—partial automatic defrost | B11: Refrigerator-freezers—partial automatic defrost | C11: 8.82AV + 248.4 | D11: =8.82*Appliances!$C$5+248.4 -> 248.4 | N11: =$O$8&O11 -> Manufactured on or after January 1st, 2007Front Loading | O11: Front Loading | P11: 1.26 | Q11: NA | W11: Kitchen faucets/ replacement aerators | X11: 2.2 gpm @ 60 psi | AD11: BR30 incandescent reflector lamp | AE11: 65 | AH11: =$AG$7&AI11 -> Manufactured on or before January 1, 2015Electric, Standard (4.4 ft 3 or greater capacity) | AI11: Electric, Standard (4.4 ft 3 or greater capacity) | AJ11: 3.01 | AQ11: Without reverse cycle, with louvered sides, and 6,000 to 7,999 Btu/h | AR11: No | AS11: Yes | AT11: =AS11&AR11 -> YesNo | AU11: 6,000 to 7,999 Btu/h | AV11: =$AW$8&AS11&AR11&AU11 -> Before May 31, 2014YesNo6,000 to 7,999 Btu/h | AW11: 9.7 | AX11: =$AY$8&AS11&AR11&AU11 -> After May 31, 2014YesNo6,000 to 7,999 Btu/h | AY11: 11 | AZ11: 6,000 to 7,999 Btu/h | BA11: 6,000 to 7,999 Btu/h | BB11: 20,000 Btu/h or more | BC11: 14,000 Btu/h or more | BD11: NA - Casement Slider
A12: Before September 15, 2014Refrigerator-freezers—automatic defrost with top-mounted freezer without through-the-door ice service and all-refrigerator—automatic defrost | B12: Refrigerator-freezers—automatic defrost with top-mounted freezer without through-the-door ice service and all-refrigerator—automatic defrost | C12: 9.80AV + 276.0 | D12: =9.8*Appliances!$C$5+276 -> 276 | W12: Showerhead | X12: 2.5 gpm @ 80 psi | AD12: BR40 incandescent reflector lamp | AE12: 65 | AH12: =$AG$7&AI12 -> Manufactured on or before January 1, 2015Electric, Compact (120V) (less than 4.4 ft 3 capacity) | AI12: Electric, Compact (120V) (less than 4.4 ft 3 capacity) | AJ12: 3.13 | AQ12: Without reverse cycle, with louvered sides, and 8,000 to 13,999 Btu/h | AR12: No | AS12: Yes | AT12: YesNo | AU12: 8,000 to 10,999 Btu/h | AV12: Before May 31, 2014YesNo8,000 to 10,999 Btu/h | AW12: 9.8 | AX12: After May 31, 2014YesNo8,000 to 10,999 Btu/h | AY12: 10.9 | AZ12: 8,000 to 10,999 Btu/h | BA12: 8,000 to 10,999 Btu/h
A13: Before September 15, 2014Refrigerator-freezers—automatic defrost with side-mounted freezer without through-the-door ice service | B13: Refrigerator-freezers—automatic defrost with side-mounted freezer without through-the-door ice service | C13: 4.91AV + 507.5 | D13: =4.91*Appliances!$C$5+507.5 -> 507.5 | O13: =M9 -> Manufactured between March 7th, 2015 and January 1st, 2018 | P13: ft3/kWh/cycle Energy Factor | Q13: gal/cycle/ft3 water factor | W13: Toilets | X13: 1.6 gpf | AD13: BR30 halogen IR reflector lamp | AE13: 45 | AH13: =$AG$7&AI13 -> Manufactured on or before January 1, 2015Electric, Compact (240V) (less than 4.4 ft 3 capacity) | AI13: Electric, Compact (240V) (less than 4.4 ft 3 capacity) | AJ13: 2.9 | AQ13: Without reverse cycle, with louvered sides, and 8,000 to 13,999 Btu/h | AR13: No | AS13: Yes | AT13: YesNo | AU13: 11,000 to 13,999 Btu/h | AV13: Before May 31, 2014YesNo11,000 to 13,999 Btu/h | AW13: 9.8 | AX13: After May 31, 2014YesNo11,000 to 13,999 Btu/h | AY13: 10.9 | AZ13: 11,000 to 13,999 Btu/h | BA13: 11,000 to 13,999 Btu/h
A14: Before September 15, 2014Refrigerator-freezers—automatic defrost with bottom-mounted freezer without through-the-door ice service | B14: Refrigerator-freezers—automatic defrost with bottom-mounted freezer without through-the-door ice service | C14: 4.60AV + 459.0 | D14: =4.6*Appliances!$C$5+459 -> 459 | N14: =$O$13&O14 -> Manufactured between March 7th, 2015 and January 1st, 2018Top Loading Compact (less than 1.6 ft3 capacity) | O14: Top Loading Compact (less than 1.6 ft3 capacity) | P14: 0.86 | Q14: 14.4 | AD14: PAR30 halogen reflector lamp | AE14: 50 | AH14: =$AG$7&AI14 -> Manufactured on or before January 1, 2015Gas | AI14: Gas | AJ14: 2.67 | AQ14: Without reverse cycle, with louvered sides, and 14,000 to 19,999 Btu/h | AR14: No | AS14: Yes | AT14: YesNo | AU14: 14,000 to 19,999 Btu/h | AV14: Before May 31, 2014YesNo14,000 to 19,999 Btu/h | AW14: 9.7 | AX14: After May 31, 2014YesNo14,000 to 19,999 Btu/h | AY14: 10.7 | AZ14: 14,000 to 19,999 Btu/h | BA14: 14,000 to 19,999 Btu/h
A15: Before September 15, 2014Refrigerator-freezers—automatic defrost with top-mounted freezer with through-the-door ice service | B15: Refrigerator-freezers—automatic defrost with top-mounted freezer with through-the-door ice service | C15: 10.20AV + 356.0 | D15: =10.2*Appliances!$C$5+356 -> 356 | N15: =$O$13&O15 -> Manufactured between March 7th, 2015 and January 1st, 2018Top Loading Standard (1.6 ft3 or greater capacity) | O15: Top Loading Standard (1.6 ft3 or greater capacity) | P15: 1.13 | Q15: 8.4 | AD15: PAR38 halogen reflector lamp | AE15: 90 | AQ15: Without reverse cycle, with louvered sides, and 20,000 to 27,999 Btu/h | AR15: No | AS15: Yes | AT15: YesNo | AU15: 20,000 to 27,999 Btu/h | AV15: Before May 31, 2014YesNo20,000 to 27,999 Btu/h | AW15: 8.5 | AX15: After May 31, 2014YesNo20,000 to 27,999 Btu/h | AY15: 9.4 | AZ15: 20,000 to 27,999 Btu/h | BA15: 20,000 to 27,999 Btu/h
A16: Before September 15, 2014Refrigerator-freezers—automatic defrost with side-mounted freezer with through-the-door ice service | B16: Refrigerator-freezers—automatic defrost with side-mounted freezer with through-the-door ice service | C16: 10.10AV + 406.0 | D16: =10.1*Appliances!$C$5+406 -> 406 | N16: =$O$13&O16 -> Manufactured between March 7th, 2015 and January 1st, 2018Front Loading Compact (less than 1.6 ft3 capacity) | O16: Front Loading Compact (less than 1.6 ft3 capacity) | P16: 1.13 | Q16: 8.3 | AD16: 4-foot T12 linear fluorescent lamp | AE16: 40 | AJ16: Manufactured after January 1, 2015 | AQ16: Without reverse cycle, with louvered sides, and 28,000 Btu/h or more | AR16: No | AS16: Yes | AT16: YesNo | AU16: 28,000 Btu/h or more | AV16: Before May 31, 2014YesNo28,000 Btu/h or more | AW16: 8.5 | AX16: After May 31, 2014YesNo28,000 Btu/h or more | AY16: 9 | AZ16: 28,000 Btu/h or more | BA16: 28,000 Btu/h or more
A17: Before September 15, 2014Upright freezers with manual defrost | B17: Upright freezers with manual defrost | C17: 7.55AV + 258.3 | D17: =7.55*Appliances!$C$5+258.3 -> 258.3 | N17: =$O$13&O17 -> Manufactured between March 7th, 2015 and January 1st, 2018Front Loading Standard (1.6 ft3 or greater capacity) | O17: Front Loading Standard (1.6 ft3 or greater capacity) | P17: 1.84 | Q17: 4.7 | AD17: 3-foot T12 linear fluorescent lamp | AE17: 30 | AJ17: Energy Factor (lbs/kWh) | AQ17: Without reverse cycle, without louvered sides, and less than 6,000 Btu/h | AR17: No | AS17: No | AT17: NoNo | AU17: < 6,000 Btu/h | AV17: Before May 31, 2014NoNo< 6,000 Btu/h | AW17: 9 | AX17: After May 31, 2014NoNo< 6,000 Btu/h | AY17: 10
A18: Before September 15, 2014Upright freezers with automatic defrost | B18: Upright freezers with automatic defrost | C18: 12.43AV + 326.1 | D18: =12.43*Appliances!$C$5+326.1 -> 326.1 | AD18: 2-foot T12 linear fluorescent lamp | AE18: 20 | AH18: =$AG$8&AI18 -> Manufactured after January 1, 2015Vented Electric, Standard (4.4 ft 3 or greater capacity) | AI18: Vented Electric, Standard (4.4 ft 3 or greater capacity) | AJ18: 3.73 | AQ18: Without reverse cycle, without louvered sides, and 6,000 to 7,999 Btu/h | AR18: No | AS18: No | AT18: NoNo | AU18: 6,000 to 7,999 Btu/h | AV18: Before May 31, 2014NoNo6,000 to 7,999 Btu/h | AW18: 9 | AX18: After May 31, 2014NoNo6,000 to 7,999 Btu/h | AY18: 10
A19: Before September 15, 2014Chest freezers and all other freezers except compact freezers | B19: Chest freezers and all other freezers except compact freezers | C19: 9.88AV + 143.7 | D19: =9.88*Appliances!$C$5+143.7 -> 143.7 | AD19: 4-foot T8 linear fluorescent lamp | AE19: 32 | AH19: Manufactured after January 1, 2015Vented Electric, Compact (120V) (less than 4.4 ft 3 capacity) | AI19: Vented Electric, Compact (120V) (less than 4.4 ft 3 capacity) | AJ19: 3.61 | AQ19: Without reverse cycle, without louvered sides, and 8,000 to 10,999 Btu/h | AR19: No | AS19: No | AT19: NoNo | AU19: 8,000 to 10,999 Btu/h | AV19: Before May 31, 2014NoNo8,000 to 10,999 Btu/h | AW19: 8.5 | AX19: After May 31, 2014NoNo8,000 to 10,999 Btu/h | AY19: 9.6
A20: Before September 15, 2014Compact refrigerators and refrigerator-freezers with manual defrost | B20: Compact refrigerators and refrigerator-freezers with manual defrost | C20: 10.70AV + 299.0 | D20: =10.7*Appliances!$C$5+299 -> 299 | AD20: 3-foot T8 linear fluorescent lamp | AE20: 26 | AH20: Manufactured after January 1, 2015Vented Electric, Compact (240V) (less than 4.4 ft 3 capacity) | AI20: Vented Electric, Compact (240V) (less than 4.4 ft 3 capacity) | AJ20: 3.27 | AQ20: Without reverse cycle, without louvered sides, and 11,000 to 13,999 Btu/h | AR20: No | AS20: No | AT20: NoNo | AU20: 11,000 to 13,999 Btu/h | AV20: Before May 31, 2014NoNo11,000 to 13,999 Btu/h | AW20: 8.5 | AX20: After May 31, 2014NoNo11,000 to 13,999 Btu/h | AY20: 9.5
A21: Before September 15, 2014Compact refrigerator-freezer—partial automatic defrost | B21: Compact refrigerator-freezer—partial automatic defrost | C21: 7.00AV + 398.0 | D21: =7*Appliances!$C$5+398 -> 398 | AD21: 21-inch T5 linear fluorescent lamp | AE21: 13 | AH21: Manufactured after January 1, 2015Vented Gas | AI21: Vented Gas | AJ21: 3.3 | AQ21: Without reverse cycle, without louvered sides, and 14,000 to 19,999 Btu/h | AR21: No | AS21: No | AT21: NoNo | AU21: 14,000 to 19,999 Btu/h | AV21: Before May 31, 2014NoNo14,000 to 19,999 Btu/h | AW21: 8.5 | AX21: After May 31, 2014NoNo14,000 to 19,999 Btu/h | AY21: 9.3
A22: Before September 15, 2014Compact refrigerator-freezers—automatic defrost with top-mounted freezer and compact all-refrigerator—automatic defrost | B22: Compact refrigerator-freezers—automatic defrost with top-mounted freezer and compact all-refrigerator—automatic defrost | C22: 12.70AV + 355.0 | D22: =12.7*Appliances!$C$5+355 -> 355 | AD22: Screwbase CFL | AE22: 14 | AH22: Manufactured after January 1, 2015Ventless Electric, Compact (240V) (less than 4.4 ft 3 capacity) | AI22: Ventless Electric, Compact (240V) (less than 4.4 ft 3 capacity) | AJ22: 2.55 | AQ22: Without reverse cycle, without louvered sides, and 20,000 Btu/h or more | AR22: No | AS22: No | AT22: NoNo | AU22: 20,000 to 27,999 Btu/h | AV22: Before May 31, 2014NoNo20,000 to 27,999 Btu/h | AW22: 8.5 | AX22: After May 31, 2014NoNo20,000 to 27,999 Btu/h | AY22: 9.4
A23: Before September 15, 2014Compact refrigerator-freezers—automatic defrost with side-mounted freezer | B23: Compact refrigerator-freezers—automatic defrost with side-mounted freezer | C23: 7.60AV + 501.0 | D23: =7.6*Appliances!$C$5+501 -> 501 | AD23: Covered CFL (A-lamp shape) | AE23: 15 | AH23: Manufactured after January 1, 2015Ventless Electric, Combination Washer-Dryer | AI23: Ventless Electric, Combination Washer-Dryer | AJ23: 2.08 | AQ23: Without reverse cycle, without louvered sides, and 20,000 Btu/h or more | AR23: No | AS23: No | AT23: NoNo | AU23: 28,000 Btu/h or more | AV23: Before May 31, 2014NoNo28,000 Btu/h or more | AW23: 8.5 | AX23: After May 31, 2014NoNo28,000 Btu/h or more | AY23: 9.4
A24: Before September 15, 2014Compact refrigerator-freezers—automatic defrost with bottom-mounted freezer | B24: Compact refrigerator-freezers—automatic defrost with bottom-mounted freezer | C24: 13.10AV + 367.0 | D24: =13.1*Appliances!$C$5+367 -> 367 | AD24: Covered CFL (globe-shape) | AE24: 9 | AQ24: With reverse cycle, with louvered sides, and less than 20,000 Btu/h | AR24: Yes | AS24: Yes | AT24: YesYes | AU24: < 20,000 Btu/h | AV24: Before May 31, 2014YesYes< 20,000 Btu/h | AW24: 9 | AX24: After May 31, 2014YesYes< 20,000 Btu/h | AY24: 9.8
A25: Before September 15, 2014Compact upright freezers with manual defrost | B25: Compact upright freezers with manual defrost | C25: 9.78AV + 250.8 | D25: =9.78*Appliances!$C$5+250.8 -> 250.8 | AD25: Covered CFL (globe-shape, with candelabra-base) | AE25: 9 | AQ25: With reverse cycle, without louvered sides, and less than 14,000 Btu/h | AR25: Yes | AS25: No | AT25: NoYes | AU25: 14,000 Btu/h | AV25: Before May 31, 2014NoYes14,000 Btu/h | AW25: 8.5 | AX25: After May 31, 2014NoYes14,000 Btu/h | AY25: 9.3
A26: Before September 15, 2014Compact upright freezers with automatic defrost | B26: Compact upright freezers with automatic defrost | C26: 11.40AV + 391.0 | D26: =11.4*Appliances!$C$5+391 -> 391 | AD26: Covered CFL (capsule-shape) | AE26: 14 | AQ26: With reverse cycle, with louvered sides, and 20,000 Btu/h or more | AR26: Yes | AS26: Yes | AT26: YesYes | AU26: 20,000 Btu/h or more | AV26: Before May 31, 2014YesYes20,000 Btu/h or more | AW26: 8.5 | AX26: After May 31, 2014YesYes20,000 Btu/h or more | AY26: 9.3
A27: Before September 15, 2014Compact chest freezers | B27: Compact chest freezers | C27: 10.45AV + 152.0 | D27: =10.45*Appliances!$C$5+152 -> 152 | AD27: Covered FL (reflector-shape) | AE27: 15 | AQ27: With reverse cycle, without louvered sides, and 14,000 Btu/h or more | AR27: Yes | AS27: No | AT27: NoYes | AU27: 14,000 Btu/h or more | AV27: Before May 31, 2014NoYes14,000 Btu/h or more | AW27: 8 | AX27: After May 31, 2014NoYes14,000 Btu/h or more | AY27: 8.7
AD28: CFL (GU24 Base) | AE28: 9 | AQ28: Casement-Only | AR28: NA | AS28: NA | AT28: NANA | AU28: NA - Casement Only | AV28: Before May 31, 2014NANANA - Casement Only | AW28: 8.7 | AX28: After May 31, 2014NANANA - Casement Only | AY28: 9.5
AD29: Screwbase LED (A-lamp shape) | AE29: 12 | AQ29: Casement-Slider | AR29: NA | AS29: NA | AT29: NANA | AU29: NA - Casement Slider | AV29: Before May 31, 2014NANANA - Casement Slider | AW29: 9.5 | AX29: After May 31, 2014NANANA - Casement Slider | AY29: 10.4
B30: Product class | C30: Energy standard equations for maximum energy use | D30: Formula | AD30: Screwbase LED (globe-shape) | AE30: 8 | AR30: On or after January 1, 2015
C31: (kWh/yr) | D31: (kWh/yr) | AD31: Screwbase LED reflector (PAR20 shape) | AE31: 9 | AQ31: Central Air Conditioners and Heat Pumps | AR31: Seasonal Energy Efficiency Ratio (SEER) | AS31: Heating Seasonal Performance Factor (HSPF) | AT31: Average off mode power consumption (watts)
A32: ="September 15, 2014 and after"&B32 -> September 15, 2014 and afterRefrigerator-freezers and refrigerators other than all-refrigerators with manual defrost | B32: Refrigerator-freezers and refrigerators other than all-refrigerators with manual defrost | C32: 7.99AV + 225.0 | D32: =7.99*Appliances!$C$5+225 -> 225 | AD32: Screwbase LED reflector (BR30 shape | AE32: 13 | AQ32: Split systems - air conditioners | AR32: 13 | AS32: NA | AT32: 30
A33: ="September 15, 2014 and after"&B33 -> September 15, 2014 and afterAll-refrigerators—manual defrost | B33: All-refrigerators—manual defrost | C33: 6.79AV + 193.6 | D33: =6.79*Appliances!$C$5+193.6 -> 193.6 | AD33: Screwbase LED reflector (PAR30 shape, outdoor-rated) | AE33: 15 | AQ33: Split systems - heat pumps | AR33: 14 | AS33: 8.2 | AT33: 33
A34: September 15, 2014 and afterRefrigerator-freezers—partial automatic defrost | B34: Refrigerator-freezers—partial automatic defrost | C34: 7.99AV + 225.0 | D34: =7.99*Appliances!$C$5+225 -> 225 | AD34: Screwbase LED reflector (PAR38 shape, outdoor-rated) | AE34: 24 | AQ34: Single package units - air conditioners | AR34: 14 | AS34: - | AT34: 30
A35: September 15, 2014 and afterRefrigerator-freezers—automatic defrost with top-mounted freezer without an automatic icemaker | B35: Refrigerator-freezers—automatic defrost with top-mounted freezer without an automatic icemaker | C35: 8.07AV + 233.7 | D35: =8.07*Appliances!$C$5+233.7 -> 233.7 | AQ35: Single package units - heat pumps | AR35: 14 | AS35: 8 | AT35: 33
A36: September 15, 2014 and afterBuilt-in refrigerator-freezer—automatic defrost with top-mounted freezer without an automatic icemaker | B36: Built-in refrigerator-freezer—automatic defrost with top-mounted freezer without an automatic icemaker | C36: 9.15AV + 264.9 | D36: =9.15*Appliances!$C$5+264.9 -> 264.9 | AQ36: Small-duct, high-velocity systems | AR36: 12 | AS36: 7.2 | AT36: 30
A37: September 15, 2014 and afterRefrigerator-freezers—automatic defrost with top-mounted freezer with an automatic icemaker without through-the-door ice service | B37: Refrigerator-freezers—automatic defrost with top-mounted freezer with an automatic icemaker without through-the-door ice service | C37: 8.07AV + 317.7 | D37: =8.07*Appliances!$C$5+317.7 -> 317.7 | AQ37: Space-constrained products - air conditioners | AR37: 12 | AS37: - | AT37: 30
A38: September 15, 2014 and afterBuilt-in refrigerator-freezers—automatic defrost with top-mounted freezer with an automatic icemaker without through-the-door ice service | B38: Built-in refrigerator-freezers—automatic defrost with top-mounted freezer with an automatic icemaker without through-the-door ice service | C38: 9.15AV + 348.9 | D38: =9.15*Appliances!$C$5+348.9 -> 348.9 | AQ38: Space-constrained products - heat pumps | AR38: 12 | AS38: 7.4 | AT38: 33
A39: September 15, 2014 and afterAll-refrigerators—automatic defrost | B39: All-refrigerators—automatic defrost | C39: 7.07AV + 201.6 | D39: =7.07*Appliances!$C$5+201.6 -> 201.6
A40: September 15, 2014 and afterBuilt-in All-refrigerators—automatic defrost | B40: Built-in All-refrigerators—automatic defrost | C40: 8.02AV + 228.5 | D40: =8.02*Appliances!$C$5+228.5 -> 228.5
A41: September 15, 2014 and afterRefrigerator-freezers—automatic defrost with side-mounted freezer without an automatic icemaker | B41: Refrigerator-freezers—automatic defrost with side-mounted freezer without an automatic icemaker | C41: 8.51AV + 297.8 | D41: =8.51*Appliances!$C$5+297.8 -> 297.8
A42: September 15, 2014 and afterBuilt-In Refrigerator-freezers—automatic defrost with side-mounted freezer without an automatic icemaker | B42: Built-In Refrigerator-freezers—automatic defrost with side-mounted freezer without an automatic icemaker | C42: 10.22AV + 357.4 | D42: =10.22*Appliances!$C$5+357.4 -> 357.4
A43: September 15, 2014 and afterRefrigerator-freezers—automatic defrost with side-mounted freezer with an automatic icemaker without through-the-door ice service | B43: Refrigerator-freezers—automatic defrost with side-mounted freezer with an automatic icemaker without through-the-door ice service | C43: 8.51AV + 381.8 | D43: =8.51*Appliances!$C$5+381.8 -> 381.8
A44: September 15, 2014 and afterBuilt-In Refrigerator-freezers—automatic defrost with side-mounted freezer with an automatic icemaker without through-the-door ice service | B44: Built-In Refrigerator-freezers—automatic defrost with side-mounted freezer with an automatic icemaker without through-the-door ice service | C44: 10.22AV + 441.4 | D44: =10.22*Appliances!$C$5+441.4 -> 441.4
A45: September 15, 2014 and after5. without an automatic icemaker | B45: 5. without an automatic icemaker | C45: 8.85AV + 317.0 | D45: =8.85*Appliances!$C$5+317 -> 317
A46: September 15, 2014 and afterBuilt-In Refrigerator-freezers—automatic defrost with bottom-mounted freezer without an automatic icemaker | B46: Built-In Refrigerator-freezers—automatic defrost with bottom-mounted freezer without an automatic icemaker | C46: 9.40AV + 336.9 | D46: =9.4*Appliances!$C$5+336.9 -> 336.9
A47: September 15, 2014 and afterRefrigerator-freezers—automatic defrost with bottom-mounted freezer with an automatic icemaker without through-the-door ice service | B47: Refrigerator-freezers—automatic defrost with bottom-mounted freezer with an automatic icemaker without through-the-door ice service | C47: 8.85AV + 401.0 | D47: =8.85*Appliances!$C$5+401 -> 401
A48: September 15, 2014 and afterBuilt-In Refrigerator-freezers—automatic defrost with bottom-mounted freezer with an automatic icemaker without through-the-door ice service | B48: Built-In Refrigerator-freezers—automatic defrost with bottom-mounted freezer with an automatic icemaker without through-the-door ice service | C48: 9.40AV + 420.9 | D48: =9.4*Appliances!$C$5+420.9 -> 420.9
A49: September 15, 2014 and afterRefrigerator-freezer—automatic defrost with bottom-mounted freezer with through-the-door ice service | B49: Refrigerator-freezer—automatic defrost with bottom-mounted freezer with through-the-door ice service | C49: 9.25AV + 475.4 | D49: =9.25*Appliances!$C$5+475.4 -> 475.4
A50: September 15, 2014 and afterBuilt-in refrigerator-freezer—automatic defrost with bottom-mounted freezer with through-the-door ice service | B50: Built-in refrigerator-freezer—automatic defrost with bottom-mounted freezer with through-the-door ice service | C50: 9.83AV + 499.9 | D50: =9.83*Appliances!$C$5+499.9 -> 499.9
A51: September 15, 2014 and afterRefrigerator-freezers—automatic defrost with top-mounted freezer with through-the-door ice service | B51: Refrigerator-freezers—automatic defrost with top-mounted freezer with through-the-door ice service | C51: 8.40AV + 385.4 | D51: =8.4*Appliances!$C$5+385.4 -> 385.4
A52: September 15, 2014 and afterRefrigerator-freezers—automatic defrost with side-mounted freezer with through-the-door ice service | B52: Refrigerator-freezers—automatic defrost with side-mounted freezer with through-the-door ice service | C52: 8.54AV + 432.8 | D52: =8.54*Appliances!$C$5+432.8 -> 432.8
A53: September 15, 2014 and afterBuilt-In Refrigerator-freezers—automatic defrost with side-mounted freezer with through-the-door ice service | B53: Built-In Refrigerator-freezers—automatic defrost with side-mounted freezer with through-the-door ice service | C53: 10.25AV + 502.6 | D53: =10.25*Appliances!$C$5+502.6 -> 502.6
A54: September 15, 2014 and afterUpright freezers with manual defrost | B54: Upright freezers with manual defrost | C54: 5.57AV + 193.7 | D54: =5.57*Appliances!$C$5+193.7 -> 193.7
A55: September 15, 2014 and afterUpright freezers with automatic defrost without an automatic icemaker | B55: Upright freezers with automatic defrost without an automatic icemaker | C55: 8.62AV + 228.3 | D55: =8.62*Appliances!$C$5+228.3 -> 228.3
A56: September 15, 2014 and afterUpright freezers with automatic defrost with an automatic icemaker | B56: Upright freezers with automatic defrost with an automatic icemaker | C56: 8.62AV + 312.3 | D56: =8.62*Appliances!$C$5+312.3 -> 312.3
A57: September 15, 2014 and afterBuilt-In Upright freezers with automatic defrost without an automatic icemaker | B57: Built-In Upright freezers with automatic defrost without an automatic icemaker | C57: 9.86AV + 260.9 | D57: =9.86*Appliances!$C$5+260.9 -> 260.9
A58: September 15, 2014 and afterBuilt-in upright freezers with automatic defrost with an automatic icemaker | B58: Built-in upright freezers with automatic defrost with an automatic icemaker | C58: 9.86AV + 344.9 | D58: =9.86*Appliances!$C$5+344.9 -> 344.9
A59: September 15, 2014 and afterChest freezers and all other freezers except compact freezers | B59: Chest freezers and all other freezers except compact freezers | C59: 7.29AV + 107.8 | D59: =7.29*Appliances!$C$5+107.8 -> 107.8
A60: September 15, 2014 and afterChest freezers with automatic defrost | B60: Chest freezers with automatic defrost | C60: 10.24AV + 148.1 | D60: =10.24*Appliances!$C$5+148.1 -> 148.1
A61: September 15, 2014 and afterCompact refrigerator-freezers and refrigerators other than all-refrigerators with manual defrost | B61: Compact refrigerator-freezers and refrigerators other than all-refrigerators with manual defrost | C61: 9.03AV + 252.3 | D61: =9.03*Appliances!$C$5+252.3 -> 252.3
A62: September 15, 2014 and afterCompact all-refrigerators—manual defrost | B62: Compact all-refrigerators—manual defrost | C62: 7.84AV + 219.1 | D62: =7.84*Appliances!$C$5+219.1 -> 219.1
A63: September 15, 2014 and afterCompact refrigerator-freezers—partial automatic defrost | B63: Compact refrigerator-freezers—partial automatic defrost | C63: 5.91AV + 335.8 | D63: =5.91*Appliances!$C$5+335.8 -> 335.8
A64: September 15, 2014 and afterCompact refrigerator-freezers—automatic defrost with top-mounted freezer | B64: Compact refrigerator-freezers—automatic defrost with top-mounted freezer | C64: 11.80AV + 339.2 | D64: =11.8*Appliances!$C$5+339.2 -> 339.2
A65: September 15, 2014 and afterCompact refrigerator-freezers—automatic defrost with top-mounted freezer with an automatic icemaker | B65: Compact refrigerator-freezers—automatic defrost with top-mounted freezer with an automatic icemaker | C65: 11.80AV + 423.2 | D65: =11.8*Appliances!$C$5+423.2 -> 423.2
A66: September 15, 2014 and afterCompact all-refrigerators—automatic defrost | B66: Compact all-refrigerators—automatic defrost | C66: 9.17AV + 259.3 | D66: =9.17*Appliances!$C$5+259.3 -> 259.3
A67: September 15, 2014 and afterCompact refrigerator-freezers—automatic defrost with side-mounted freezer | B67: Compact refrigerator-freezers—automatic defrost with side-mounted freezer | C67: 6.82AV + 456.9 | D67: =6.82*Appliances!$C$5+456.9 -> 456.9
A68: September 15, 2014 and afterCompact refrigerator-freezers—automatic defrost with side-mounted freezer with an automatic icemaker | B68: Compact refrigerator-freezers—automatic defrost with side-mounted freezer with an automatic icemaker | C68: 6.82AV + 540.9 | D68: =6.82*Appliances!$C$5+540.9 -> 540.9
A69: September 15, 2014 and afterCompact refrigerator-freezers—automatic defrost with bottom-mounted freezer | B69: Compact refrigerator-freezers—automatic defrost with bottom-mounted freezer | C69: 11.80AV + 339.2 | D69: =11.8*Appliances!$C$5+339.2 -> 339.2
A70: September 15, 2014 and afterCompact refrigerator-freezers—automatic defrost with bottom-mounted freezer with an automatic icemaker | B70: Compact refrigerator-freezers—automatic defrost with bottom-mounted freezer with an automatic icemaker | C70: 11.80AV + 423.2 | D70: =11.8*Appliances!$C$5+423.2 -> 423.2
A71: September 15, 2014 and afterCompact upright freezers with manual defrost | B71: Compact upright freezers with manual defrost | C71: 8.65AV + 225.7 | D71: =8.65*Appliances!$C$5+225.7 -> 225.7
A72: September 15, 2014 and afterCompact upright freezers with automatic defrost | B72: Compact upright freezers with automatic defrost | C72: 10.17AV + 351.9 | D72: =10.17*Appliances!$C$5+351.9 -> 351.9
A73: September 15, 2014 and afterCompact chest freezers | B73: Compact chest freezers | C73: 9.25AV + 136.8 | D73: =9.25*Appliances!$C$5+136.8 -> 136.8
